bitfinex/quotes_BTCUSD_20251012
["timestamp","ask_amount","ask_price","bid_price","bid_amount"]
[1760292209324,0.34215136,114090.0,114080.0,0.36321556]
[1760292210356,0.00215136,114090.0,114080.0,0.36321556]
[1760292210569,0.34215136,114090.0,114080.0,0.36321556]
[1760292211462,0.00215136,114090.0,114080.0,0.36321556]
[1760292212949,0.00215136,114090.0,114080.0,0.36421556]
[1760292213148,0.00215136,114090.0,114080.0,0.42256921]
[1760292215933,1e-08,114090.0,114080.0,0.45272111]
[1760292216135,1.11423085,114100.0,114090.0,0.2054521]
[1760292216357,1.08889491,114100.0,114090.0,0.3520321]
[1760292216569,1.08889491,114100.0,114090.0,0.5291697]
[1760292217196,1.08945983,114100.0,114090.0,0.5291697]
[1760292217583,1.08945983,114100.0,114090.0,1.45766314]
[1760292217584,0.22109355,114100.0,114090.0,1.45766314]
[1760292217797,0.00028,114120.0,114110.0,0.17526947]
[1760292217998,0.00036726,114120.0,114110.0,0.20838947]
[1760292218195,0.00036726,114120.0,114110.0,0.32375947]
[1760292218400,0.00149684,114120.0,114110.0,0.44344089]
[1760292218582,1e-08,114120.0,114110.0,1.01954242]
[1760292218773,1e-08,114120.0,114110.0,1.11454241]
[1760292219558,1e-08,114120.0,114110.0,0.56444087]
[1760292219767,1e-08,114120.0,114110.0,0.56344087]
[1760292219916,1e-08,114120.0,114110.0,0.56444087]
[1760292220160,1e-08,114120.0,114110.0,0.56644087]
[1760292220333,1e-08,114120.0,114110.0,1.11754241]
[1760292220703,1e-08,114120.0,114110.0,1.45754241]
[1760292221096,1e-08,114120.0,114110.0,0.90644087]
[1760292221326,1e-08,114120.0,114110.0,1.45754241]
[1760292224737,1e-08,114120.0,114110.0,0.90644087]
[1760292224950,1e-08,114120.0,114110.0,1.45754241]
[1760292225425,0.0002,114160.0,114150.0,0.17520805]
[1760292225640,0.00069772,114160.0,114150.0,0.25378805]
[1760292225851,0.00069772,114160.0,114150.0,0.37570805]
[1760292227267,1e-08,114160.0,114150.0,0.40585995]
[1760292228089,1e-08,114160.0,114150.0,0.40685995]
[1760292228493,1e-08,114160.0,114150.0,0.40585995]
[1760292228692,1e-08,114160.0,114150.0,0.40685995]
[1760292229309,1e-08,114160.0,114150.0,0.40785995]
[1760292231062,0.0022582,114160.0,114150.0,0.40785995]
[1760292231646,0.0022582,114160.0,114150.0,0.37770805]
[1760292240004,0.0022582,114160.0,114150.0,0.37645432]
[1760292243937,0.0022582,114160.0,114150.0,0.64635432]
[1760292249951,0.0022582,114160.0,114150.0,0.37645432]
[1760292250178,0.0022582,114160.0,114150.0,0.43502209]
[1760292250336,0.0022582,114160.0,114150.0,0.43402209]
[1760292250540,0.0022582,114160.0,114150.0,0.43302209]
[1760292250749,0.0022582,114160.0,114150.0,0.43502209]
[1760292255934,0.0022582,114160.0,114150.0,0.70492209]
[1760292267689,0.0022582,114160.0,114150.0,0.46517399]
[1760292269193,1e-08,114160.0,114150.0,1.07103827]
[1760292269603,1e-08,114160.0,114150.0,0.67970349]
[1760292269833,1e-08,114160.0,114150.0,0.5797035]
[1760292270057,1e-08,114160.0,114150.0,0.67970349]
[1760292270701,1e-08,114160.0,114150.0,1.53603825]
[1760292271917,1e-08,114160.0,114150.0,1.53503825]
[1760292272360,1e-08,114160.0,114150.0,1.53703825]
[1760292272600,1e-08,114160.0,114150.0,1.56687825]
[1760292272931,1e-08,114160.0,114150.0,1.05254349]
[1760292273365,1e-08,114160.0,114150.0,0.9525435]
[1760292273592,1e-08,114160.0,114150.0,1.05254349]
[1760292273811,1e-08,114160.0,114150.0,0.9525435]
[1760292274031,1e-08,114160.0,114150.0,1.05254349]
[1760292274242,1e-08,114160.0,114150.0,0.9505435]
[1760292274452,1e-08,114160.0,114150.0,1.05154349]
[1760292274922,1e-08,114160.0,114150.0,1.04954349]
[1760292275148,1e-08,114160.0,114150.0,1.05054349]
[1760292275367,1e-08,114160.0,114150.0,1.56687825]
[1760292275806,1e-08,114170.0,114160.0,0.33034459]
[1760292276038,0.00014927,114170.0,114160.0,0.53171599]
[1760292276251,0.00071367,114170.0,114160.0,0.57979599]
[1760292276914,1e-08,114170.0,114160.0,1.43713075]
[1760292278386,1e-08,114170.0,114160.0,1.43813075]
[1760292278605,1e-08,114170.0,114160.0,1.43713075]
[1760292278849,1e-08,114170.0,114160.0,1.43613075]
[1760292279107,1e-08,114170.0,114160.0,0.92179599]
[1760292279323,1e-08,114170.0,114160.0,1.43813075]
[1760292280293,0.07592846,114180.0,114170.0,0.20017735]
[1760292280499,0.07592846,114180.0,114170.0,1.0181894]
[1760292280889,0.0002,114200.0,114170.0,1.3883413]
[1760292281112,0.0002,114210.0,114200.0,0.20528324]
[1760292281326,0.0003492,114210.0,114200.0,0.32817276]
[1760292281501,0.0003492,114210.0,114200.0,0.45765464]
[1760292282749,1e-08,114210.0,114200.0,0.9749894]
[1760292283084,1e-08,114210.0,114200.0,0.48465463]
[1760292283284,1e-08,114210.0,114200.0,1.00098939]
[1760292283485,1e-08,114210.0,114200.0,0.48465463]
[1760292286333,0.00225671,114210.0,114200.0,0.48465463]
[1760292287266,0.00225671,114210.0,114200.0,1.00098939]
[1760292290348,0.00225671,114210.0,114200.0,0.48465463]
[1760292290547,0.00225671,114210.0,114200.0,1.00098939]
[1760292292304,0.00225671,114210.0,114200.0,0.48465463]
[1760292292729,0.00225671,114210.0,114200.0,1.00098939]
[1760292294032,0.0002,114240.0,114230.0,0.17508535]
[1760292294276,0.0002,114240.0,114230.0,0.28936914]
[1760292294500,0.0002,114240.0,114230.0,0.9247439]
[1760292294922,1e-08,114240.0,114230.0,1.04442532]
[1760292295143,1e-08,114240.0,114230.0,1.40942531]
[1760292295353,1e-08,114240.0,114230.0,1.5094253]
[1760292295777,1e-08,114240.0,114230.0,1.5104253]
[1760292296768,1e-08,114240.0,114230.0,1.5114253]
[1760292297145,1e-08,114240.0,114230.0,1.5104253]
[1760292297352,1e-08,114240.0,114230.0,1.5114253]
[1760292297568,1e-08,114240.0,114230.0,1.5104253]
[1760292297829,1e-08,114240.0,114230.0,1.5124253]
[1760292299191,1e-08,114240.0,114230.0,0.97109055]
[1760292299444,1e-08,114240.0,114230.0,0.65609054]
[1760292299845,0.0016918,114240.0,114230.0,0.65609054]
[1760292300002,0.0016918,114240.0,114230.0,0.99609054]
[1760292300203,0.0016918,114240.0,114230.0,0.99309054]
[1760292300405,0.0016918,114240.0,114230.0,0.99409054]
[1760292300634,0.0016918,114240.0,114230.0,0.99509054]
[1760292300777,0.0016918,114240.0,114230.0,1.57488903]
[1760292301415,0.0016918,114240.0,114230.0,0.99509054]
[1760292301607,0.0016918,114240.0,114230.0,0.49993866]
[1760292302152,0.0016918,114240.0,114230.0,0.53009056]
[1760292302895,0.0016918,114240.0,114230.0,0.52909056]
[1760292303093,0.0016918,114240.0,114230.0,0.52809056]
[1760292303290,0.0016918,114240.0,114230.0,1.10888905]
[1760292303514,0.0016918,114240.0,114230.0,0.53009056]
[1760292308191,0.0016918,114240.0,114230.0,0.41040914]
[1760292309214,0.0016918,114240.0,114230.0,0.40940914]
[1760292309612,0.0016918,114240.0,114230.0,0.40840914]
[1760292309821,0.0016918,114240.0,114230.0,0.40940914]
[1760292310241,0.0016918,114240.0,114230.0,0.52909056]
[1760292310637,1e-08,114240.0,114230.0,0.89409055]
[1760292310837,1e-08,114240.0,114230.0,1.54323226]
[1760292312789,1e-08,114240.0,114230.0,1.54423226]
[1760292313038,1e-08,114240.0,114230.0,1.54223226]
[1760292313280,1e-08,114240.0,114230.0,1.54323226]
[1760292313406,1e-08,114240.0,114230.0,1.54523226]
[1760292314740,1e-08,114240.0,114230.0,0.99609054]
[1760292314946,1e-08,114240.0,114230.0,1.54523226]
[1760292315424,1e-08,114240.0,114230.0,0.99609054]
[1760292316287,1e-08,114240.0,114230.0,1.54523226]
[1760292318999,1e-08,114240.0,114230.0,0.99609054]
[1760292319271,1e-08,114240.0,114230.0,1.54523226]
[1760292320653,1e-08,114240.0,114230.0,0.99609054]
[1760292320860,1e-08,114240.0,114230.0,1.54523226]
[1760292321283,1e-08,114240.0,114230.0,1.57154856]
[1760292322082,1e-08,114240.0,114230.0,1.02240684]
[1760292322286,1e-08,114240.0,114230.0,1.57154856]
[1760292322653,1e-08,114240.0,114230.0,0.92240685]
[1760292322847,1e-08,114240.0,114230.0,0.99609054]
[1760292323162,1e-08,114240.0,114230.0,0.89609055]
[1760292323367,1e-08,114240.0,114230.0,0.99609054]
[1760292325503,1e-08,114240.0,114230.0,1.54523226]
[1760292325895,1e-08,114240.0,114230.0,0.99609054]
[1760292326240,1e-08,114240.0,114230.0,0.96593864]
[1760292326535,1e-08,114240.0,114230.0,0.99609054]
[1760292327125,1e-08,114240.0,114230.0,0.89609055]
[1760292327330,1e-08,114240.0,114230.0,0.46290487]
[1760292327509,1e-08,114240.0,114230.0,0.37337535]
[1760292327891,1e-08,114240.0,114230.0,0.37037535]
[1760292328293,1e-08,114240.0,114230.0,0.37237535]
[1760292328547,1e-08,114240.0,114230.0,0.37137535]
[1760292328748,1e-08,114240.0,114230.0,0.42894312]
[1760292328958,1e-08,114240.0,114230.0,0.15425]
[1760292329160,0.25783003,114240.0,114230.0,0.12628]
[1760292329359,0.25783003,114240.0,114230.0,0.30136535]
[1760292329579,0.08276001,114240.0,114230.0,0.30136535]
[1760292329949,0.08276001,114240.0,114230.0,0.12628]
[1760292330163,0.08276001,114240.0,114230.0,0.30136535]
[1760292330325,1.48174001,114240.0,114230.0,0.25233535]
[1760292330530,0.90982001,114240.0,114230.0,0.29742535]
[1760292330966,0.90982001,114240.0,114230.0,0.29642535]
[1760292333238,0.93615117,114240.0,114230.0,0.29642535]
[1760292333841,0.02633117,114240.0,114230.0,0.36547535]
[1760292334045,0.02633117,114240.0,114230.0,0.42295395]
[1760292336036,0.02633117,114240.0,114230.0,0.36547535]
[1760292336746,0.07463117,114240.0,114230.0,0.29642535]
[1760292338090,1e-08,114240.0,114230.0,0.36547535]
[1760292340738,1e-08,114240.0,114230.0,0.36647535]
[1760292348843,1e-08,114240.0,114230.0,0.48615677]
[1760292349069,1e-08,114240.0,114230.0,0.82615677]
[1760292349528,1e-08,114240.0,114230.0,1.50061688]
[1760292349960,1e-08,114240.0,114230.0,1.49961688]
[1760292350171,1e-08,114240.0,114230.0,1.50061688]
[1760292350385,1e-08,114240.0,114230.0,1.50161688]
[1760292350638,1e-08,114240.0,114230.0,1.49961688]
[1760292350891,0.00028,114280.0,114270.0,0.17502406]
[1760292351114,0.00077754,114280.0,114270.0,0.32748548]
[1760292351326,0.00077754,114280.0,114270.0,0.44300548]
[1760292351770,1e-08,114280.0,114270.0,0.44300548]
[1760292352013,1e-08,114280.0,114270.0,1.33246561]
[1760292352222,1e-08,114280.0,114270.0,1.45746559]
[1760292352625,1e-08,114280.0,114270.0,0.91900167]
[1760292352831,1e-08,114280.0,114270.0,1.4684618]
[1760292353455,1e-08,114280.0,114270.0,1.4704618]
[1760292353663,1e-08,114280.0,114270.0,0.92200167]
[1760292353861,1e-08,114280.0,114270.0,1.4714618]
[1760292354083,1e-08,114280.0,114270.0,0.91900167]
[1760292354291,1e-08,114280.0,114270.0,0.92300167]
[1760292355117,1e-08,114280.0,114270.0,0.92100167]
[1760292355611,1e-08,114280.0,114270.0,1.4684618]
[1760292355875,1e-08,114280.0,114270.0,1.4704618]
[1760292356229,1e-08,114280.0,114270.0,1.4684618]
[1760292356486,1e-08,114310.0,114300.0,0.19997811]
[1760292356687,1e-08,114310.0,114300.0,1.25344776]
[1760292356688,0.00014923,114310.0,114300.0,1.25344776]
[1760292356835,0.00014923,114310.0,114300.0,1.36896776]
[1760292357057,0.00394458,114310.0,114300.0,0.81950763]
[1760292357260,1e-08,114310.0,114300.0,1.36896776]
[1760292357670,1e-08,114310.0,114300.0,1.46896775]
[1760292357870,1e-08,114310.0,114300.0,1.49911965]
[1760292358076,1e-08,114310.0,114300.0,0.95165952]
[1760292358301,1e-08,114310.0,114300.0,1.50111965]
[1760292359204,1e-08,114310.0,114300.0,0.95165952]
[1760292359399,1e-08,114310.0,114300.0,0.85165953]
[1760292359897,1e-08,114310.0,114300.0,0.95265952]
[1760292360333,1e-08,114310.0,114300.0,0.97896207]
[1760292360814,1e-08,114310.0,114300.0,1.42842221]
[1760292361056,1e-08,114310.0,114300.0,1.5284222]
[1760292361260,1e-08,114310.0,114300.0,0.97896207]
[1760292363725,1e-08,114310.0,114300.0,0.53896208]
[1760292364146,1e-08,114310.0,114300.0,0.45750764]
[1760292364276,1e-08,114310.0,114300.0,0.36797812]
[1760292364917,1e-08,114310.0,114300.0,0.36697812]
[1760292365243,1.48954283,114310.0,114300.0,0.04504]
[1760292365447,1.51585846,114310.0,114300.0,0.04504]
[1760292365650,1.36333846,114310.0,114300.0,0.19102]
[1760292365891,1.36333846,114310.0,114300.0,0.18802]
[1760292366080,1.40815846,114310.0,114300.0,0.1206]
[1760292366311,1.40815846,114310.0,114300.0,0.1196]
[1760292366521,0.02631563,114310.0,114300.0,0.40254323]
[1760292366729,0.34,114320.0,114310.0,0.17496282]
[1760292366940,0.3663116,114320.0,114310.0,0.32094282]
[1760292367564,0.0263116,114320.0,114310.0,0.32094282]
[1760292367766,0.51513221,114330.0,114310.0,0.32094282]
[1760292367919,0.57442332,114330.0,114310.0,0.34922736]
[1760292368122,0.04482,114320.0,114310.0,0.25252282]
[1760292368321,0.25274751,114320.0,114310.0,0.03244]
[1760292368480,0.17496282,114310.0,114300.0,0.07448]
[1760292368686,0.59276282,114310.0,114300.0,0.29457812]
[1760292368994,0.59276282,114310.0,114300.0,0.1196]
[1760292369634,0.67980385,114310.0,114300.0,0.1196]
[1760292369846,0.67980385,114310.0,114300.0,0.07448]
[1760292370049,0.59276282,114310.0,114300.0,0.29457812]
[1760292370216,0.51496282,114310.0,114300.0,0.29457812]
[1760292370422,0.34,114310.0,114300.0,0.36299812]
[1760292370671,0.51496282,114310.0,114300.0,0.29457812]
[1760292370846,0.55978282,114310.0,114300.0,0.1196]
[1760292371028,0.59276282,114310.0,114300.0,0.29457812]
[1760292371243,0.51496282,114310.0,114300.0,0.29457812]
[1760292371452,0.51496282,114310.0,114300.0,0.36299812]
[1760292371661,0.51496282,114310.0,114300.0,0.1196]
[1760292371856,0.55978282,114310.0,114300.0,0.1196]
[1760292372073,0.59276282,114310.0,114300.0,0.1196]
[1760292372283,0.59276282,114310.0,114300.0,0.07448]
[1760292372616,0.59276282,114310.0,114300.0,0.29457812]
[1760292372766,0.59276282,114310.0,114300.0,0.1196]
[1760292372978,0.66248282,114310.0,114300.0,0.04204]
[1760292373138,0.34,114310.0,114300.0,0.39604256]
[1760292374273,0.59276282,114310.0,114300.0,0.07454]
[1760292374677,0.61907705,114310.0,114300.0,0.07454]
[1760292374888,0.61907705,114310.0,114300.0,0.11966]
[1760292375123,0.61907705,114310.0,114300.0,0.29463812]
[1760292375345,0.68879705,114310.0,114300.0,0.04204]
[1760292375792,0.61907705,114310.0,114300.0,0.26213812]
[1760292376275,0.61907705,114310.0,114300.0,0.29463812]
[1760292376487,0.61907705,114310.0,114300.0,0.11966]
[1760292376656,0.61907705,114310.0,114300.0,0.07454]
[1760292377517,1.59957739,114310.0,114300.0,0.04204]
[1760292378806,1.60057739,114310.0,114300.0,0.04204]
[1760292379948,1.61931207,114310.0,114300.0,0.04204]
[1760292380232,0.79725107,114310.0,114300.0,0.04204]
[1760292380442,1.61931207,114310.0,114300.0,0.04204]
[1760292381326,0.79725107,114310.0,114300.0,0.04204]
[1760292381536,1.61931207,114310.0,114300.0,0.04204]
[1760292382783,1.53059273,114310.0,114300.0,0.04204]
[1760292384185,1.5305814,114310.0,114300.0,0.04204]
[1760292384932,0.7085204,114310.0,114300.0,0.04204]
[1760292385171,1.5305814,114310.0,114300.0,0.04204]
[1760292385378,0.7085204,114310.0,114300.0,0.04204]
[1760292385579,0.79723974,114310.0,114300.0,0.04204]
[1760292385884,1.61930074,114310.0,114300.0,0.04204]
[1760292386573,0.7085204,114310.0,114300.0,0.04204]
[1760292386774,1.5305814,114310.0,114300.0,0.04204]
[1760292386960,0.7085204,114310.0,114300.0,0.04204]
[1760292387160,1.5305814,114310.0,114300.0,0.04204]
[1760292387365,0.7085204,114310.0,114300.0,0.04204]
[1760292387778,1.5305814,114310.0,114300.0,0.04204]
[1760292387973,0.7085204,114310.0,114300.0,0.04204]
[1760292388312,1.5305814,114310.0,114300.0,0.04204]
[1760292389120,1.61930074,114310.0,114300.0,0.04204]
[1760292390503,1.5305814,114310.0,114300.0,0.04204]
[1760292390699,0.7085204,114310.0,114300.0,0.04204]
[1760292390905,1.5305814,114310.0,114300.0,0.04204]
[1760292391352,0.7085204,114310.0,114300.0,0.04204]
[1760292391529,1.5305814,114310.0,114300.0,0.04204]
[1760292392112,1.61930074,114310.0,114300.0,0.04204]
[1760292393050,1.5305814,114310.0,114300.0,0.04204]
[1760292393462,0.7085204,114310.0,114300.0,0.04204]
[1760292393627,1.5305814,114310.0,114300.0,0.04204]
[1760292393836,0.7085204,114310.0,114300.0,0.04204]
[1760292394039,1.5305814,114310.0,114300.0,0.04204]
[1760292394239,1.56214481,114310.0,114300.0,0.04204]
[1760292394525,1.5305814,114310.0,114300.0,0.04204]
[1760292396256,1.57380898,114310.0,114300.0,0.04204]
[1760292399809,0.7085204,114310.0,114300.0,0.04204]
[1760292400252,1.5305814,114310.0,114300.0,0.04204]
[1760292403611,0.7085204,114310.0,114300.0,0.04204]
[1760292404293,1.5305814,114310.0,114300.0,0.04204]
[1760292404494,0.7085204,114310.0,114300.0,0.04204]
[1760292404713,1.5305814,114310.0,114300.0,0.04204]
[1760292404880,0.79723974,114310.0,114300.0,0.04204]
[1760292405047,1.61930074,114310.0,114300.0,0.04204]
[1760292405629,0.82064392,114310.0,114300.0,0.04204]
[1760292405746,1.65086021,114310.0,114300.0,0.04204]
[1760292405947,1.68876994,114310.0,114300.0,1e-08]
[1760292406157,0.88228995,114310.0,114300.0,1e-08]
[1760292406368,1.72811585,114310.0,114300.0,1e-08]
[1760292406572,1.85311583,114310.0,114300.0,1e-08]
[1760292406776,1.80537281,114310.0,114300.0,1e-08]
[1760292406984,1.04554234,114310.0,114270.0,0.07162362]
[1760292407196,1.39423079,114280.0,114270.0,0.11381284]
[1760292407405,1.60961348,114280.0,114270.0,0.11381284]
[1760292407815,1.60961348,114280.0,114270.0,0.04218922]
[1760292408058,1.58614244,114280.0,114270.0,0.04218922]
[1760292408851,0.98241435,114280.0,114270.0,0.21721328]
[1760292409056,1.07346975,114280.0,114270.0,0.11785922]
[1760292409255,1.41346975,114280.0,114270.0,0.24951328]
[1760292409426,1.13869975,114280.0,114270.0,0.24951328]
[1760292409628,0.964691,114280.0,114270.0,0.21721328]
[1760292410222,1.304691,114280.0,114270.0,0.21721328]
[1760292410598,1.32131646,114280.0,114270.0,0.21721328]
[1760292411364,1.34763884,114280.0,114270.0,0.21721328]
[1760292411980,1.34763884,114280.0,114270.0,0.26058328]
[1760292412184,1.28240884,114280.0,114270.0,0.29288328]
[1760292412580,1.18938338,114280.0,114270.0,0.36140328]
[1760292412807,0.36732238,114280.0,114270.0,0.36140328]
[1760292414378,0.50895238,114280.0,114270.0,0.04218922]
[1760292414598,0.68396113,114280.0,114270.0,0.21721328]
[1760292414812,1.50602213,114280.0,114270.0,0.04218922]
[1760292415025,1.59374147,114280.0,114270.0,0.04218922]
[1760292415242,1.59474147,114280.0,114270.0,0.21721328]
[1760292415440,1.59574147,114280.0,114270.0,0.21721328]
[1760292415686,1.59574147,114280.0,114270.0,0.04218922]
[1760292415896,1.59474147,114280.0,114270.0,0.21721328]
[1760292416752,1.41873272,114280.0,114270.0,0.21721328]
[1760292417002,1.59374147,114280.0,114270.0,0.21721328]
[1760292418258,0.59667172,114280.0,114270.0,0.21721328]
[1760292418458,0.77168047,114280.0,114270.0,0.04218922]
[1760292419141,1.59374147,114280.0,114270.0,0.04218922]
[1760292419637,1.64263919,114280.0,114270.0,0.04218922]
[1760292419811,0.82057819,114280.0,114270.0,0.04218922]
[1760292420082,1.64263919,114280.0,114270.0,0.04218922]
[1760292420298,1.66611023,114280.0,114270.0,0.04218922]
[1760292420946,1.69126988,114280.0,114270.0,0.04218922]
[1760292421174,1.7235646,114280.0,114270.0,0.04218922]
[1760292421406,1.69126988,114280.0,114270.0,0.04218922]
[1760292421632,1.69326988,114280.0,114270.0,0.04218922]
[1760292421849,1.6932178,114280.0,114270.0,0.04218922]
[1760292423798,1.6932178,114280.0,114240.0,0.03511405]
[1760292423799,1.3371157,114250.0,114240.0,0.03511405]
[1760292424008,0.6360029,114250.0,114240.0,0.04635405]
[1760292424154,1.5709739,114250.0,114240.0,0.04635405]
[1760292424370,1.58136034,114250.0,114240.0,0.04635405]
[1760292424570,1.492641,114250.0,114240.0,0.04635405]
[1760292424735,0.60138,114250.0,114240.0,0.29453407]
[1760292425220,0.67058,114250.0,114240.0,0.04635405]
[1760292425343,0.67058,114250.0,114240.0,0.22142407]
[1760292426056,0.60138,114250.0,114240.0,0.26327407]
[1760292426430,0.60138,114250.0,114240.0,0.29453407]
[1760292428127,0.4263253,114250.0,114240.0,0.29453407]
[1760292428329,0.00014886,114250.0,114240.0,0.41961397]
[1760292429020,0.34875043,114280.0,114270.0,0.17502406]
[1760292429246,1.0692713,114280.0,114270.0,0.17502406]
[1760292429638,1.4092713,114280.0,114270.0,0.17502406]
[1760292429839,0.822061,114270.0,114260.0,0.20889586]
[1760292430042,0.07579,114270.0,114260.0,0.25074586]
[1760292430201,0.25081406,114270.0,114260.0,0.07572]
[1760292430421,1.07287506,114270.0,114260.0,0.25075938]
[1760292430617,0.897851,114270.0,114260.0,0.25075938]
[1760292431019,1.07287506,114270.0,114260.0,0.25075938]
[1760292431420,0.897851,114270.0,114260.0,0.25075938]
[1760292431634,0.89790067,114270.0,114260.0,0.25075938]
[1760292432238,1.08336752,114270.0,114260.0,0.25075938]
[1760292432697,1.17208686,114270.0,114260.0,0.20890938]
[1760292432923,1.17208686,114270.0,114260.0,0.21688938]
[1760292434226,1.08336752,114270.0,114260.0,0.25075938]
[1760292434392,0.90834346,114270.0,114260.0,0.25075938]
[1760292434586,0.83255346,114270.0,114260.0,0.31883938]
[1760292434904,1.05128752,114270.0,114260.0,0.25075938]
[1760292435456,0.83255346,114270.0,114260.0,0.25075938]
[1760292435627,0.83255346,114270.0,114260.0,0.31883938]
[1760292435628,0.01049246,114270.0,114260.0,0.31883938]
[1760292435767,0.18551652,114270.0,114260.0,0.31883938]
[1760292436372,0.01049246,114270.0,114260.0,0.31883938]
[1760292437724,4.967e-05,114270.0,114260.0,0.37161576]
[1760292438818,4.967e-05,114270.0,114260.0,0.31883938]
[1760292439266,4.967e-05,114270.0,114260.0,0.32083938]
[1760292440053,4.967e-05,114270.0,114260.0,15.32083938]
[1760292450152,4.967e-05,114270.0,114260.0,15.36287938]
[1760292455755,4.967e-05,114270.0,114260.0,15.26287938]
[1760292457197,4.967e-05,114270.0,114260.0,15.19479938]
[1760292457403,4.967e-05,114270.0,114260.0,15.25976938]
[1760292457956,4.967e-05,114270.0,114260.0,15.25876938]
[1760292458161,4.967e-05,114270.0,114260.0,15.25776938]
[1760292458362,4.967e-05,114270.0,114260.0,15.25876938]
[1760292460120,4.967e-05,114270.0,114260.0,15.19379938]
[1760292460256,4.967e-05,114270.0,114260.0,15.25876938]
[1760292460659,0.20756373,114270.0,114260.0,15.04304]
[1760292460954,0.65726003,114270.0,114260.0,15.04304]
[1760292461279,1.47932103,114270.0,114260.0,15.04304]
[1760292461638,1.47932103,114270.0,114260.0,15.04204]
[1760292462605,1.43781473,114270.0,114260.0,15.04204]
[1760292466876,1.46197438,114270.0,114260.0,15.04204]
[1760292469468,0.61575373,114270.0,114260.0,15.04204]
[1760292469654,1.45654408,114270.0,114260.0,15.04204]
[1760292470013,1.48070373,114270.0,114260.0,15.04204]
[1760292470217,0.74736207,114270.0,114260.0,15.04204]
[1760292470433,1.56942307,114270.0,114260.0,15.04204]
[1760292470613,1.57142307,114270.0,114260.0,15.04204]
[1760292470801,0.74936207,114270.0,114260.0,15.04204]
[1760292471004,1.57142307,114270.0,114260.0,15.04204]
[1760292471205,1.57042307,114270.0,114260.0,15.04204]
[1760292471401,1.57040145,114270.0,114260.0,15.04204]
[1760292471602,0.77567112,114270.0,114260.0,15.04204]
[1760292472047,1.59773212,114270.0,114260.0,15.04204]
[1760292473698,1.57357247,114270.0,114260.0,15.04204]
[1760292473912,1.59773212,114270.0,114260.0,15.04204]
[1760292475245,1.57902439,114270.0,114260.0,15.04204]
[1760292475463,1.59772018,114270.0,114260.0,15.04204]
[1760292475670,0.77565918,114270.0,114260.0,15.04204]
[1760292475883,1.59772018,114270.0,114260.0,15.04204]
[1760292476131,0.77565918,114270.0,114260.0,15.04204]
[1760292476395,1.43981473,114270.0,114260.0,15.04204]
[1760292476858,1.46614314,114270.0,114260.0,15.04204]
[1760292477414,1.48830279,114270.0,114260.0,15.04204]
[1760292477614,0.66624179,114270.0,114260.0,15.04204]
[1760292477915,1.48830279,114270.0,114260.0,15.04204]
[1760292478286,0.66724179,114270.0,114260.0,15.04204]
[1760292478624,0.7547159,114270.0,114260.0,15.04204]
[1760292478943,1.5767769,114270.0,114260.0,15.04204]
[1760292479148,0.7547159,114270.0,114260.0,15.04204]
[1760292479350,1.5767769,114270.0,114260.0,15.04204]
[1760292480195,0.7547159,114270.0,114260.0,15.04204]
[1760292480400,1.46514314,114270.0,114260.0,15.04204]
[1760292480603,1.43881473,114270.0,114260.0,15.04204]
[1760292481404,1.46297438,114270.0,114260.0,15.04204]
[1760292481566,1.43881473,114270.0,114260.0,15.04204]
[1760292482717,1.43781473,114270.0,114260.0,15.04204]
[1760292483143,1.52653407,114270.0,114260.0,15.04204]
[1760292486822,1.55668597,114270.0,114260.0,15.04204]
[1760292487024,1.6017344,114270.0,114260.0,15.04204]
[1760292487529,1.62589405,114270.0,114260.0,15.04204]
[1760292488282,1.62689405,114270.0,114260.0,15.04204]
[1760292489019,1.62789405,114270.0,114260.0,15.04204]
[1760292490449,1.65132539,114270.0,114260.0,15.04204]
[1760292490878,0.82926439,114270.0,114260.0,15.04204]
[1760292491111,1.65132539,114270.0,114260.0,15.04204]
[1760292493573,0.82926439,114270.0,114260.0,15.04204]
[1760292494018,1.65132539,114270.0,114260.0,15.04204]
[1760292494443,0.82926439,114270.0,114260.0,15.04204]
[1760292494645,1.65132539,114270.0,114260.0,15.04204]
[1760292495156,0.77495284,114270.0,114260.0,15.04204]
[1760292495289,1.5735825,114270.0,114260.0,15.04204]
[1760292495489,0.7515215,114270.0,114260.0,15.04204]
[1760292495716,1.59774215,114270.0,114260.0,15.04204]
[1760292495920,1.5735825,114270.0,114260.0,15.04204]
[1760292496245,1.59701384,114270.0,114260.0,15.04204]
[1760292496388,0.77495284,114270.0,114260.0,15.04204]
[1760292496579,1.59701384,114270.0,114260.0,15.04204]
[1760292496986,1.5735825,114270.0,114260.0,15.04204]
[1760292497390,0.77495284,114270.0,114260.0,15.04204]
[1760292497590,1.05795477,114270.0,114260.0,15.04204]
[1760292497792,1.12415477,114270.0,114260.0,15.04204]
[1760292498251,1.46415477,114270.0,114260.0,15.04204]
[1760292498450,1.12315477,114270.0,114260.0,15.04204]
[1760292498756,1.55187411,114270.0,114260.0,15.04204]
[1760292499506,1.55087411,114270.0,114260.0,15.04204]
[1760292502971,1.48631442,114270.0,114260.0,15.04204]
[1760292503680,1.46215477,114270.0,114260.0,15.04204]
[1760292503894,1.46215477,114270.0,114260.0,14.63461986]
[1760292503895,1.53520532,114270.0,114260.0,14.63461986]
[1760292504562,0.71314432,114270.0,114260.0,14.63461986]
[1760292504785,0.71414432,114270.0,114260.0,14.63461986]
[1760292505050,1.62492466,114270.0,114260.0,14.63461986]
[1760292505269,1.62392466,114270.0,114260.0,14.63461986]
[1760292505517,1.62592466,114270.0,114260.0,14.63461986]
[1760292505704,0.80386366,114270.0,114260.0,14.63461986]
[1760292505974,1.62592466,114270.0,114260.0,14.63461986]
[1760292506668,1.62692466,114270.0,114260.0,14.63461986]
[1760292506896,1.62592466,114270.0,114260.0,14.63461986]
[1760292507116,1.51304567,114270.0,114260.0,14.63461986]
[1760292507329,0.69198467,114270.0,114260.0,14.63461986]
[1760292507538,1.51404567,114270.0,114260.0,14.63461986]
[1760292507749,1.53820532,114270.0,114260.0,14.63461986]
[1760292507953,1.53620532,114270.0,114260.0,14.63461986]
[1760292508152,0.80286366,114270.0,114260.0,14.63461986]
[1760292508282,1.62592466,114270.0,114260.0,14.63461986]
[1760292508485,0.80386366,114270.0,114260.0,14.63461986]
[1760292508686,1.62492466,114270.0,114260.0,14.63461986]
[1760292509314,0.80286366,114270.0,114260.0,14.63461986]
[1760292509488,1.62492466,114270.0,114260.0,14.63461986]
[1760292509924,0.80286366,114270.0,114260.0,14.63461986]
[1760292510119,1.62492466,114270.0,114260.0,14.63461986]
[1760292511080,1.62592466,114270.0,114260.0,14.63461986]
[1760292513379,0.80386366,114270.0,114260.0,14.63461986]
[1760292513624,1.62592466,114270.0,114260.0,14.63461986]
[1760292514104,0.80386366,114270.0,114260.0,14.63461986]